fUSD/lending_fUSD_20240912
["ID","MTS","AMOUNT","RATE_DAILY","PERIOD"]
[337826761,1726138256195,-1033.53,0.00014794,2]
[337826762,1726138256205,-500.0,0.00014794,2]
[337826763,1726138256215,-500.0,0.00014794,2]
[337826764,1726138256225,-3339.3,0.00014794,2]
[337826765,1726138256236,-1193.63,0.00014794,2]
[337826766,1726138256246,-500.0,0.00014794,2]
[337826767,1726138256256,-500.0,0.00014794,2]
[337826768,1726138256265,-1033.53,0.00014794,2]
[337826769,1726138256275,-500.0,0.00014794,2]
[337826770,1726138256286,-1193.63,0.00014794,2]
[337826771,1726138256296,-500.0,0.00014794,2]
[337826772,1726138256306,-500.0,0.00014794,2]
[337826773,1726138256316,-3339.3,0.00014794,2]
[337826774,1726138256325,-1033.53,0.00014794,2]
[337826775,1726138256335,-1193.63,0.00014794,2]
[337826776,1726138256344,-500.0,0.00014794,2]
[337826777,1726138256354,-197.13329494,0.00014794,2]
[337826778,1726138256363,-1033.53,0.00014794,2]
[337826779,1726138256376,-3339.3,0.00014794,2]
[337826780,1726138256386,-500.0,0.00014794,2]
[337826781,1726138256395,-500.0,0.00014794,2]
[337826782,1726138256405,-1193.63,0.00014794,2]
[337826783,1726138256415,-500.0,0.00014794,2]
[337826784,1726138256425,-1033.53,0.00014794,2]
[337826785,1726138256435,-3339.3,0.00014794,2]
[337826786,1726138256444,-500.0,0.00014794,2]
[337826787,1726138256454,-500.0,0.00014794,2]
[337826788,1726138256463,-1193.63,0.00014794,2]
[337826789,1726138256473,-500.0,0.00014794,2]
[337826790,1726138256483,-528.65,0.00014794,2]
[337826791,1726138256492,-1033.53,0.00014794,2]
[337826792,1726138256502,-680.54,0.00014794,2]
[337826793,1726138256512,-3339.3,0.00014794,2]
[337826794,1726138256522,-500.0,0.00014794,2]
[337826795,1726138256531,-1193.63,0.00014794,2]
[337826796,1726138256540,-500.0,0.00014794,2]
[337826797,1726138256550,-680.54,0.00014794,2]
[337826798,1726138256560,-3339.3,0.00014794,2]
[337826799,1726138256570,-528.65,0.00014794,2]
[337826800,1726138256580,-500.0,0.00014794,2]
[337826801,1726138256589,-500.0,0.00014794,2]
[337826802,1726138256599,-500.0,0.00014794,2]
[337826803,1726138256609,-1193.63,0.00014794,2]
[337826804,1726138256618,-528.65,0.00014794,2]
[337826805,1726138256628,-680.54,0.00014794,2]
[337826806,1726138256637,-3339.3,0.00014794,2]
[337826807,1726138256647,-500.0,0.00014794,2]
[337826808,1726138256656,-500.0,0.00014794,2]
[337826809,1726138256666,-1193.63,0.00014794,2]
[337826810,1726138256675,-528.65,0.00014794,2]
[337826811,1726138256686,-3339.3,0.00014794,2]
[337826812,1726138256696,-509.89589142,0.00014794,2]
[337826813,1726138256705,-500.0,0.00014794,2]
[337826814,1726138256715,-1193.63,0.00014794,2]
[337826815,1726138256725,-528.65,0.00014794,2]
[337826816,1726138256735,-518.19,0.00014794,2]
[337826817,1726138256744,-3339.3,0.00014794,2]
[337826818,1726138256754,-680.54,0.00014794,2]
[337826819,1726138256763,-1193.63,0.00014794,2]
[337826820,1726138256772,-500.0,0.00014794,2]
[337826821,1726138256782,-500.0,0.00014794,2]
[337826822,1726138256792,-518.19,0.00014794,2]
[337826823,1726138256802,-680.54,0.00014794,2]
[337826824,1726138256811,-528.65,0.00014794,2]
[337826825,1726138256821,-1193.63,0.00014794,2]
[337826826,1726138256833,-500.0,0.00014794,2]
[337826827,1726138256843,-500.0,0.00014794,2]
[337826828,1726138256852,-518.19,0.00014794,2]
[337826829,1726138256862,-3339.3,0.00014794,2]
[337826830,1726138256872,-528.65,0.00014794,2]
[337826831,1726138256881,-1193.63,0.00014794,2]
[337826832,1726138256890,-500.0,0.00014794,2]
[337826833,1726138256900,-500.0,0.00014794,2]
[337826834,1726138256909,-3339.3,0.00014794,2]
[337826835,1726138256919,-528.65,0.00014794,2]
[337826836,1726138256928,-518.19,0.00014794,2]
[337826837,1726138256938,-500.0,0.00014794,2]
[337826838,1726138256947,-1193.63,0.00014794,2]
[337826839,1726138256957,-500.0,0.00014794,2]
[337826840,1726138256966,-528.65,0.00014794,2]
[337826841,1726138256975,-3339.3,0.00014794,2]
[337826842,1726138256985,-518.19,0.00014794,2]
[337826843,1726138256994,-500.0,0.00014794,2]
[337826844,1726138257005,-1193.63,0.00014794,2]
[337826845,1726138257015,-500.0,0.00014794,2]
[337826846,1726138257024,-528.65,0.00014794,2]
[337826847,1726138257035,-3339.3,0.00014794,2]
[337826848,1726138257044,-518.34527401,0.00014794,2]
[337826849,1726138257055,-500.0,0.00014794,2]
[337826850,1726138257066,-528.65,0.00014794,2]
[337826851,1726138257076,-3339.3,0.00014794,2]
[337826852,1726138257086,-500.0,0.00014794,2]
[337826853,1726138257095,-500.0,0.00014794,2]
[337826854,1726138257105,-1193.63,0.00014794,2]
[337826855,1726138257115,-680.54,0.00014794,2]
[337826856,1726138257126,-3339.3,0.00014794,2]
[337826857,1726138257136,-500.0,0.00014794,2]
[337826858,1726138257146,-500.0,0.00014794,2]
[337826859,1726138257156,-500.0,0.00014794,2]
[337826860,1726138257169,-680.54,0.00014794,2]
[337826861,1726138257178,-1193.63,0.00014794,2]
[337826862,1726138257188,-3339.3,0.00014794,2]
[337826863,1726138257199,-528.65,0.00014794,2]
[337826864,1726138257208,-500.0,0.00014794,2]
[337826865,1726138257218,-500.0,0.00014794,2]
[337826866,1726138257227,-73.83478252,0.00014794,2]
[337826867,1726138257826,-1.13351111,0.00014794,2]
[337826868,1726138257838,-425.03170637,0.00014794,2]
[337826869,1726138257848,-96.56172391,0.00014794,2]
[337826870,1726138257868,-453.16590618,0.00014794,2]
[337826871,1726138257887,-643.90236991,0.00014794,2]
[337826872,1726138257897,-3339.3,0.00014794,2]
[337826873,1726138257906,-528.65,0.00014794,2]
[337826874,1726138257915,-680.54,0.00014794,2]
[337826875,1726138258006,-500.0,0.00014794,2]
[337826876,1726138258016,-180.78556036,0.00014794,2]
[337826877,1726138258035,-319.21443964,0.00014794,2]
[337826878,1726138258044,-500.0,0.00014794,2]
[337826879,1726138258054,-1193.63,0.00014794,2]
[337826880,1726138258063,-528.65,0.00014794,2]
[337826881,1726138258072,-268.40403229,0.00014794,2]
[337826882,1726138258098,-505.3046845,0.00014794,2]
[337826883,1726138258916,-2565.59128321,0.00014794,2]
[337826884,1726138258927,-680.54,0.00014794,2]
[337826885,1726138258937,-1193.75218768,0.00014794,2]
[337826886,1726138258947,-500.0,0.00014794,2]
[337826887,1726138258957,-500.0,0.00014794,2]
[337826888,1726138258966,-528.65,0.00014794,2]
[337826889,1726138258976,-3339.3,0.00014794,2]
[337826890,1726138258986,-680.54,0.00014794,2]
[337826891,1726138258996,-500.0,0.00014794,2]
[337826892,1726138259006,-576.07615885,0.00014794,2]
[337826893,1726138259016,-500.0,0.00014794,2]
[337826894,1726138259026,-680.54,0.00014794,2]
[337826895,1726138259036,-369.16307582,0.00014794,2]
[337826899,1726138261466,-28.74962999,0.00014794,2]
[337826901,1726138602453,876.65,0.00011818,2]
[337826902,1726138609925,-725.91079194,0.000128,2]
[337826903,1726138609947,-352.89359828,0.000128,2]
[337826904,1726138609970,-6432.19560978,0.000129,2]
[337826905,1726138619141,-8322.53019022,0.000129,2]
[337826906,1726138619164,-1677.46980978,0.00013,2]
[337826907,1726138619532,-10000.0,0.00013,2]
[337826908,1726138619843,-10000.0,0.00013,2]
[337826909,1726138620261,-10000.0,0.00013,2]
[337826910,1726138620613,-10000.0,0.00013,2]
[337826911,1726138620978,-10000.0,0.00013,2]
[337826912,1726138621521,-10000.0,0.00013,2]
[337826913,1726138621765,-10000.0,0.00013,2]
[337826914,1726138624097,-150.0,0.00012999,2]
[337826915,1726138624119,-9850.0,0.00013,2]
[337826916,1726138644033,500.0,0.00011164,2]
[337826917,1726138685908,500.0,0.00011164,2]
[337826918,1726138686348,500.0,0.00011164,2]
[337826919,1726138791229,182.32,0.00010959,2]
[337826920,1726138801547,-13336.0,0.00013,2]
[337826921,1726138808286,-300.0,0.00012999,2]
[337826922,1726138808321,-9700.0,0.00013,2]
[337826924,1726138809237,-10000.0,0.00013,2]
[337826925,1726138810433,-10000.0,0.00013,2]
[337826926,1726138811640,-10000.0,0.00013,2]
[337826927,1726138812812,-220.02,0.00012989,2]
[337826928,1726138812834,-9779.98,0.00013,2]
[337826929,1726138814676,-10000.0,0.00013,2]
[337826932,1726139133693,150.0,3.38e-06,2]
[337826933,1726139180018,150.0,3.47e-06,2]
[337826934,1726139188906,383.95845693,0.00011139,2]
[337826935,1726139188937,545.77154307,0.00011139,2]
[337826936,1726139199701,150.0,3.54e-06,2]
[337826943,1726139294255,-150.0,0.00012619,2]
[337826944,1726139294283,-194.64,0.0001264,2]
[337826945,1726139294310,-184.16169411,0.00012799,2]
[337826946,1726139294337,-2792.90076282,0.00012898,2]
[337826947,1726139294379,-3179.06191676,0.00012898,2]
[337826948,1726139294405,-142.64054017,0.00012899,2]
[337826949,1726139294440,-3321.70245693,0.00012899,2]
[337826950,1726139294490,-2830.6278029,0.00012899,2]
[337826951,1726139294517,-491.07465403,0.00012899,2]
[337826952,1726139294559,-8.92534597,0.00012899,2]
[337826953,1726139294586,-410.5168081,0.00012899,2]
[337826954,1726139294612,-2902.26030286,0.0001299,2]
[337826955,1726139294652,-2968.57979209,0.0001299,2]
[337826956,1726139294680,-353.12266484,0.00013,2]
[337826957,1726139294730,-3321.70245693,0.00013,2]
[337826958,1726139294764,-3321.70245693,0.00013,2]
[337826959,1726139294795,-1948.41500899,0.00013,2]
[337826960,1726139294963,-3321.70245693,0.00013,2]
[337826961,1726139295001,-3321.70245693,0.00013,2]
[337826974,1726139432222,-448.12958754,0.000125,2]
[337826975,1726139432234,-303.4456781,0.000125,2]
[337826976,1726139432443,-554.04576987,0.000125,2]
[337826977,1726139432455,-694.37896449,0.000125,2]
[337826978,1726139432465,-2205.62103551,0.00012527,2]
[337826979,1726139432499,-1034.2536799,0.00012527,2]
[337826980,1726139432508,-466.5444309,0.00012608,2]
[337826981,1726139432520,-1111.1355691,0.00012608,2]
[337826982,1726139432529,-23900.0,0.00012627,2]
[337826983,1726139432539,-171.92,0.00012652,2]
[337826984,1726139432549,-9559.3802,0.00012799,2]
[337826985,1726139432558,-333.69441188,0.00012825,2]
[337826986,1726139432571,-78079.68998637,0.00013,2]
[337826987,1726139432580,-2623.36342089,0.00013,2]
[337826988,1726139432590,-243.41,0.00013026,2]
[337826989,1726139432601,-800.0,0.00013056,2]
[337826990,1726139432612,-250.0,0.00013062,2]
[337826991,1726139432621,-250.0,0.00013075,2]
[337826992,1726139432631,-8271.22,0.00013075,2]
[337826993,1726139432640,-438.36,0.00013075,2]
[337826994,1726139432649,-150.22,0.00013105,2]
[337826995,1726139432658,-2491.72,0.00013105,2]
[337826996,1726139432667,-200.0,0.00013151,2]
[337826997,1726139432677,-250.0,0.00013249,2]
[337826998,1726139432687,-156.67,0.00013278,2]
[337826999,1726139432696,-150.0,0.0001329,2]
[337827000,1726139432706,-150.0,0.0001329,2]
[337827001,1726139432715,-150.0,0.0001329,2]
[337827002,1726139432725,-150.0,0.0001329,2]
[337827003,1726139432735,-150.0,0.0001329,2]
[337827004,1726139432745,-156.67,0.000133,2]
[337827005,1726139432755,-156.67,0.00013322,2]
[337827006,1726139432764,-156.67,0.00013344,2]
[337827007,1726139432774,-155.63,0.00013373,2]
[337827009,1726139432783,-929.73,0.00013403,2]
[337827010,1726139432793,-268.52,0.00013416,2]
[337827011,1726139432802,-170.75,0.00013431,2]
[337827012,1726139432814,-150.0,0.00013475,2]
[337827013,1726139432831,-150.0,0.00013586,2]
[337827014,1726139432840,-200.0,0.00013626,2]
[337827016,1726139432849,-701.0077,0.00013634,2]
[337827018,1726139432859,-1436.7407,0.00013634,2]
[337827020,1726139432868,-199.2131,0.00013634,2]
[337827022,1726139432878,-150.0,0.0001366,2]
[337827024,1726139432888,-999.99,0.00013718,2]
[337827026,1726139432897,-26271.2217,0.00013734,2]
[337827028,1726139432907,-372.441,0.00013734,2]
[337827030,1726139432916,-150.0,0.00013783,2]
[337827031,1726139432925,-500.0,0.00013794,2]
[337827032,1726139432935,-500.0,0.00013794,2]
[337827033,1726139432944,-500.0,0.00013794,2]
[337827034,1726139432954,-500.0,0.00013794,2]
[337827035,1726139432964,-500.0,0.00013794,2]
[337827036,1726139432973,-500.0,0.00013794,2]
[337827037,1726139432983,-500.0,0.00013794,2]
[337827038,1726139432992,-500.0,0.00013794,2]
[337827039,1726139433001,-500.0,0.00013794,2]
[337827040,1726139433011,-500.0,0.00013794,2]
[337827041,1726139433019,-500.0,0.00013794,2]
[337827042,1726139433028,-500.0,0.00013794,2]
[337827043,1726139433038,-500.0,0.00013794,2]
[337827044,1726139433047,-500.0,0.00013794,2]
[337827045,1726139433056,-500.0,0.00013794,2]
[337827046,1726139433067,-500.0,0.00013794,2]
[337827047,1726139433076,-500.0,0.00013794,2]
[337827048,1726139433086,-500.0,0.00013794,2]
[337827049,1726139433095,-500.0,0.00013794,2]
[337827050,1726139433104,-500.0,0.00013794,2]
[337827051,1726139433114,-500.0,0.00013794,2]
[337827052,1726139433123,-500.0,0.00013794,2]
[337827053,1726139433132,-500.0,0.00013794,2]
[337827054,1726139433141,-500.0,0.00013794,2]
[337827055,1726139433150,-500.0,0.00013794,2]
[337827056,1726139433160,-500.0,0.00013794,2]
[337827057,1726139433169,-208.08,0.00013794,2]
[337827058,1726139433178,-500.0,0.00013834,2]
[337827059,1726139433187,-500.0,0.00013834,2]
[337827060,1726139433196,-500.0,0.00013834,2]
[337827061,1726139433206,-500.0,0.00013834,2]
[337827062,1726139433215,-474.11,0.00013834,2]
[337827063,1726139433224,-500.0,0.00013834,2]
[337827064,1726139433233,-500.0,0.00013834,2]
[337827065,1726139433243,-500.0,0.00013834,2]
[337827066,1726139433252,-500.0,0.00013834,2]
[337827067,1726139433261,-229.37,0.00013834,2]
[337827068,1726139433270,-500.0,0.00013834,2]
[337827069,1726139433279,-500.0,0.00013834,2]
[337827070,1726139433289,-500.0,0.00013834,2]
[337827071,1726139433298,-500.0,0.00013834,2]
[337827072,1726139433308,-500.0,0.00013834,2]
[337827073,1726139433318,-500.0,0.00013834,2]
[337827074,1726139433327,-500.0,0.00013834,2]
[337827075,1726139433337,-500.0,0.00013834,2]
[337827076,1726139433346,-500.0,0.00013834,2]
[337827077,1726139433355,-500.0,0.00013834,2]
[337827078,1726139433365,-500.0,0.00013834,2]
[337827079,1726139433374,-416.4,0.00013834,2]
[337827080,1726139433383,-500.0,0.00013834,2]
[337827081,1726139433392,-500.0,0.00013834,2]
[337827082,1726139433402,-500.0,0.00013834,2]
[337827083,1726139433411,-500.0,0.00013834,2]
[337827084,1726139433421,-500.0,0.00013834,2]
[337827085,1726139433430,-500.0,0.00013834,2]
[337827086,1726139433439,-500.0,0.00013834,2]
[337827087,1726139433448,-500.0,0.00013834,2]
[337827088,1726139433458,-500.0,0.00013834,2]
[337827089,1726139433467,-500.0,0.00013834,2]
[337827090,1726139433477,-500.0,0.00013834,2]
[337827091,1726139433487,-500.0,0.00013834,2]
[337827092,1726139433497,-500.0,0.00013834,2]
[337827093,1726139433507,-500.0,0.00013834,2]
[337827094,1726139433516,-500.0,0.00013834,2]
[337827095,1726139433525,-500.0,0.00013834,2]
[337827096,1726139433534,-500.0,0.00013834,2]
[337827097,1726139433544,-500.0,0.00013834,2]
[337827098,1726139433553,-500.0,0.00013834,2]
[337827099,1726139433563,-541.91,0.00013834,2]
[337827100,1726139433572,-500.0,0.00013834,2]
[337827101,1726139433581,-500.0,0.00013834,2]
[337827102,1726139433591,-500.0,0.00013834,2]
[337827103,1726139433600,-500.0,0.00013834,2]
[337827104,1726139433611,-500.0,0.00013834,2]
[337827105,1726139433621,-500.0,0.00013834,2]
[337827106,1726139433630,-500.0,0.00013834,2]
[337827107,1726139433640,-500.0,0.00013834,2]
[337827108,1726139433650,-500.0,0.00013834,2]
[337827109,1726139433660,-500.0,0.00013834,2]
[337827110,1726139433669,-500.0,0.00013834,2]
[337827111,1726139433679,-500.0,0.00013834,2]
[337827112,1726139433689,-500.0,0.00013834,2]
[337827113,1726139433699,-500.0,0.00013834,2]
[337827114,1726139433708,-500.0,0.00013834,2]
[337827115,1726139433717,-500.0,0.00013834,2]
[337827116,1726139433727,-500.0,0.00013834,2]
[337827117,1726139433736,-500.0,0.00013834,2]
[337827118,1726139433746,-500.0,0.00013834,2]
[337827119,1726139433755,-500.0,0.00013834,2]
[337827120,1726139433764,-500.0,0.00013834,2]
[337827121,1726139433773,-500.0,0.00013834,2]
[337827122,1726139433783,-500.0,0.00013834,2]
[337827123,1726139433792,-500.0,0.00013834,2]
[337827124,1726139433801,-500.0,0.00013834,2]
[337827125,1726139433812,-500.0,0.00013834,2]
[337827126,1726139433821,-500.0,0.00013834,2]
[337827127,1726139433831,-500.0,0.00013834,2]
[337827128,1726139433841,-500.0,0.00013834,2]
[337827129,1726139433850,-500.0,0.00013834,2]
[337827130,1726139433859,-500.0,0.00013834,2]
[337827131,1726139433868,-500.0,0.00013834,2]
[337827132,1726139433878,-500.0,0.00013834,2]
[337827133,1726139433887,-470.46,0.00013834,2]
[337827134,1726139433897,-150.0,0.00013844,2]
[337827135,1726139433907,-150.0,0.00013881,2]
[337827136,1726139433917,-707.64733332,0.00013951,2]
[337827137,1726139433926,-150.0,0.00014029,2]
[337827138,1726139433936,-164.99535302,0.00014076,2]
[337827139,1726139433946,-18949.0396604,0.0001412,2]
[337827140,1726139433955,-151.5,0.0001412,2]
[337827141,1726139433965,-56485.44986489,0.0001413,2]
[337827142,1726139433978,-765.29022052,0.0001413,2]
[337827143,1726139433990,-120120.0,0.0001413,2]
[337827146,1726139438136,-667.76472037,0.0001413,2]
[337827147,1726139438147,-326.82220256,0.0001413,2]
[337827148,1726139438631,-13816.91598433,0.0001413,2]
[337827150,1726139438642,-1109.76612253,0.0001413,2]
[337827153,1726139438654,-1173.98706814,0.0001413,2]
[337827155,1726139438665,-3351.12782822,0.0001413,2]
[337827157,1726139438676,-2082.2186989,0.0001413,2]
[337827159,1726139438688,-2583.58712451,0.0001413,2]
[337827170,1726139438784,-290.305015,0.0001413,2]
[337827174,1726139438811,-886.16930302,0.0001413,2]
[337827176,1726139438823,-480.87020041,0.0001413,2]
[337827179,1726139438844,-2248.25259335,0.0001413,2]
[337827181,1726139438856,-8284.18896675,0.0001413,2]
[337827193,1726139438960,-3212.85344129,0.0001413,2]
[337827196,1726139438971,-1778.5361056,0.0001413,2]
[337827198,1726139438983,-395.89208906,0.0001413,2]
[337827337,1726139440504,-27662.64002252,0.0001413,2]
[337827341,1726139440535,-1026.70215385,0.0001413,2]
[337827343,1726139440547,-6045.4593078,0.0001413,2]
[337827345,1726139440558,-110524.25498921,0.0001413,2]
[337827347,1726139440570,-39982.21591552,0.0001413,2]
[337827349,1726139440581,-232847.56968941,0.0001413,2]
[337827352,1726139440593,-1323.72601942,0.0001413,2]
[337827355,1726139440621,-689.8121313,0.0001413,2]
[337827357,1726139440632,-12240.78132824,0.0001413,2]
[337827506,1726139443287,-9521.52102756,0.0001413,2]
[337827521,1726139445090,-353.4100011,0.0001413,2]
[337827522,1726139445102,-744.5,0.0001413,2]
[337827523,1726139445114,-12984.06572285,0.0001413,2]
[337827524,1726139445125,-8014.68798415,0.0001413,2]
[337827525,1726139445137,-3898.14041674,0.0001413,2]
[337827540,1726139445862,-302.0,0.0001413,2]
[337827597,1726139446377,-949.65,0.0001413,2]
[337827599,1726139446389,-2470.79766762,0.0001413,2]
[337827601,1726139446400,-263.86078829,0.0001413,2]
[337827613,1726139446512,-565.134902,0.0001413,2]
[337827616,1726139446527,-2318.59106477,0.0001413,2]
[337827624,1726139446599,-5948.71108862,0.0001413,2]
[337827877,1726139720094,1050.0,0.00011,2]
[337827878,1726139772234,836.75,0.00011327,2]
[337827908,1726140047284,614.3190561,0.00011164,2]
[337827909,1726140048853,500.0,0.00011164,2]
[337827910,1726140085109,500.0,0.00011164,2]
[337827912,1726140356643,851.3,0.0001041,2]
[337827913,1726140398635,339.53,0.00010959,2]
[337827941,1726140632505,-500.0,0.00012147,2]
[337827942,1726140632516,-956.19,0.00012156,2]
[337827943,1726140632526,-35.63014959,0.00012166,2]
[337827944,1726140632537,-264.36985041,0.00012166,2]
[337827945,1726140632548,-6246.52873059,0.00012167,2]
[337827946,1726140632559,-553.45058183,0.00012167,2]
[337827947,1726140632570,-17100.02068758,0.00012167,2]
[337827948,1726140632581,-200.0,0.00012199,2]
[337827949,1726140632591,-1641.50514706,0.00012228,2]
[337827950,1726140632600,-250.0,0.00012271,2]
[337827951,1726140632612,-150.22,0.00012271,2]
[337827952,1726140632622,-150.0,0.00012328,2]
[337827953,1726140632632,-6720.88683831,0.00012328,2]
[337827954,1726140632642,-214.82,0.00012481,2]
[337827955,1726140632652,-250.0,0.00012637,2]
[337827956,1726140632661,-6585.73,0.00012637,2]
[337827957,1726140632671,-851.3,0.00012674,2]
[337827958,1726140632681,-250.0,0.00012731,2]
[337827959,1726140632690,-499.99,0.00012888,2]
[337827960,1726140632700,-215.3,0.00012888,2]
[337827961,1726140632709,-150.16719295,0.00012973,2]
[337827962,1726140632719,-159.06065612,0.00012973,2]
[337827963,1726140632729,-158.70932548,0.00012973,2]
[337827964,1726140632739,-451.69751599,0.00012973,2]
[337827965,1726140632748,-495.60950826,0.00012973,2]
[337827966,1726140632758,-284.07654706,0.00012973,2]
[337827967,1726140632767,-500.0,0.00012973,2]
[337827968,1726140632777,-200.44241681,0.00012973,2]
[337827970,1726140632786,-164.67766966,0.0001299,2]
[337827972,1726140632798,-620.44198416,0.0001299,2]
[337827974,1726140632807,-331.23235818,0.0001299,2]
[337827976,1726140632817,-151.21,0.0001299,2]
[337827978,1726140632827,-151.21,0.0001299,2]
[337827980,1726140632837,-151.21,0.0001299,2]
[337827982,1726140632847,-167922.13982185,0.00013,2]
[337827984,1726140632856,-1200.0,0.00013,3]
[337827986,1726140632866,-1100.0,0.00013,2]
[337827988,1726140632876,-32582.05662305,0.00013,2]
[337828000,1726140632987,-3839.44275338,0.00013,2]
[337828003,1726140632999,-538.88,0.00013,2]
[337828004,1726140633012,-41465.56189589,0.00013,2]
[337828005,1726140633024,-1728.39618865,0.00013,2]
[337828006,1726140633036,-1559.20212666,0.00013,2]
[337828007,1726140633057,-1112.20431424,0.00013,2]
[337828008,1726140633070,-16220.67072936,0.00013,2]
[337828009,1726140633081,-324.2343219,0.00013,2]
[337828010,1726140633096,-347.40099992,0.00013,2]
[337828011,1726140633119,-1218.07657921,0.00013,2]
[337828016,1726140638502,-160.63,0.00012137,2]
[337828017,1726140638512,-160.63,0.00012157,2]
[337828018,1726140638521,-8.2747003,0.00012157,2]
[337828019,1726140638533,-152.3552997,0.00012157,2]
[337828020,1726140638542,-160.63,0.00012157,2]
[337828021,1726140638553,-160.63,0.00012157,2]
[337828022,1726140638562,-160.63,0.00012157,2]
[337828023,1726140638571,-160.63,0.00012157,2]
[337828024,1726140638580,-160.63,0.00012157,2]
[337828025,1726140638590,-160.63,0.00012157,2]
[337828026,1726140638599,-160.63,0.00012157,2]
[337828027,1726140638608,-353.01720032,0.00013,2]
[337828028,1726140638619,-6833.76169356,0.00013,2]
[337828029,1726140638630,-6050.72207205,0.00013,2]
[337828030,1726140638642,-1606.00526828,0.00013,2]
[337828031,1726140638677,-4350.35176722,0.00013,2]
[337828034,1726140640367,-3215474.42476542,0.00013,2]
[337828035,1726140640377,-1000.0,0.000131,2]
[337828037,1726140640387,-170.75,0.00013144,2]
[337828038,1726140640396,-620.4419841,0.00013179,2]
[337828039,1726140640406,-150.0,0.0001329,2]
[337828040,1726140640417,-150.0,0.0001329,2]
[337828041,1726140640427,-150.0,0.0001329,2]
[337828042,1726140640436,-150.0,0.0001329,2]
[337828043,1726140640446,-150.00000001,0.0001329,2]
[337828044,1726140640456,-420.0,0.00013354,2]
[337828045,1726140640467,-620.4419841,0.00013369,2]
[337828046,1726140640477,-185.18,0.00013375,2]
[337828047,1726140640487,-1064.68,0.00013478,2]
[337828048,1726140640497,-796.0,0.00013505,2]
[337828049,1726140640508,-620.4419841,0.00013558,2]
[337828050,1726140640517,-150.0,0.0001366,2]
[337828051,1726140640527,-158.7,0.00013663,2]
[337828052,1726140640536,-395.15499413,0.00013741,2]
[337828053,1726140640545,-620.4419841,0.00013747,2]
[337828054,1726140640556,-422.38,0.00013836,2]
[337828055,1726140640565,-752.67,0.00013836,2]
[337828056,1726140640574,-422.38,0.00013836,2]
[337828057,1726140640583,-752.67,0.00013836,2]
[337828058,1726140640592,-752.67,0.00013836,2]
[337828059,1726140640601,-422.38,0.00013836,2]
[337828060,1726140640611,-319992.007698,0.000139,2]
[337828061,1726140640621,-260.7841,0.0001393,2]
[337828062,1726140640630,-620.4419841,0.00013937,2]
[337828063,1726140640640,-427.76,0.00013973,2]
[337828065,1726140640650,-449.0,0.00013973,2]
[337828066,1726140640659,-150.0,0.00013973,2]
[337828067,1726140640669,-150.0,0.00013973,2]
[337828068,1726140640679,-217.85,0.00013973,2]
[337828069,1726140640688,-150.0,0.00013973,2]
[337828070,1726140640697,-150.0,0.00013973,2]
[337828071,1726140640707,-150.0,0.00013973,2]
[337828072,1726140640716,-357.66,0.00013973,2]
[337828073,1726140640726,-427.76,0.00013973,2]
[337828074,1726140640737,-357.66,0.00013973,2]
[337828075,1726140640746,-150.0,0.00013973,2]
[337828076,1726140640756,-150.0,0.00013973,2]
[337828077,1726140640766,-150.0,0.00013973,2]